bitfinex/quotes_ETHUSD_20251128
["timestamp","ask_amount","ask_price","bid_price","bid_amount"]
[1764361632541,0.4677,3056.5,3056.1,3.47911835]
[1764361634445,0.4677,3056.5,3056.1,6.75126258]
[1764361634628,0.002,3056.5,3056.4,0.1583]
[1764361636250,0.002,3056.5,3056.4,3.43012305]
[1764361637213,0.002,3056.5,3056.4,4.25863034]
[1764361637514,0.002,3056.5,3056.4,5.38972845]
[1764361637838,0.3075263,3056.5,3056.4,5.38972845]
[1764361638545,0.3075263,3056.5,3056.4,5.48972845]
[1764361639740,0.3075263,3056.5,3056.4,5.52244668]
[1764361639949,0.3075263,3056.5,3056.4,3.99741716]
[1764361640121,0.3075263,3056.5,3056.4,4.31401716]
[1764361640122,0.002,3056.5,3056.4,4.31401716]
[1764361640314,0.30746311,3056.5,3056.4,4.34673539]
[1764361640715,0.30746311,3056.5,3056.4,4.44673539]
[1764361644652,0.30746311,3056.5,3056.4,4.15571716]
[1764361646738,0.30746311,3056.5,3056.4,4.18843539]
[1764361646920,0.30746311,3056.5,3056.4,4.34673539]
[1764361648651,0.30760406,3056.5,3056.4,4.34673539]
[1764361650448,0.30760406,3056.5,3056.4,5.11860158]
[1764361651476,0.30760406,3056.5,3056.4,5.21860158]
[1764361652522,0.30760406,3056.5,3056.4,4.96030158]
[1764361652723,0.30760406,3056.5,3056.4,5.21860158]
[1764361653640,0.30760406,3056.5,3056.4,4.18843539]
[1764361654437,0.30760406,3056.5,3056.4,9.46221829]
[1764361654675,0.30760406,3056.5,3056.4,9.73500406]
[1764361654849,0.30760406,3056.5,3056.4,9.83500406]
[1764361655356,0.30760406,3056.5,3056.4,10.81791291]
[1764361655555,0.30760406,3056.5,3056.4,17.24237976]
[1764361655752,0.002,3056.9,3056.8,0.505504]
[1764361655951,0.002,3056.9,3056.8,1.59639811]
[1764361656253,0.002,3056.9,3056.8,1.75469811]
[1764361656455,0.002,3056.9,3056.8,2.73752002]
[1764361656656,0.002,3056.9,3056.8,6.78421523]
[1764361660359,0.002,3056.9,3056.8,11.79969813]
[1764361661754,2.2856,3057.7,3056.9,0.405504]
[1764361661949,2.2856,3057.7,3057.1,0.1]
[1764361662152,2.2856,3057.7,3057.2,0.207]
[1764361663959,0.4916,3057.6,3057.3,6.5417198]
[1764361664759,0.496,3057.4,3057.3,3.2708599]
[1764361665149,0.9876,3057.4,3057.3,3.2708599]
[1764361667868,1.29301573,3057.4,3057.3,3.2708599]
[1764361668167,0.80141573,3057.4,3057.3,3.2708599]
[1764361668364,0.30541573,3057.4,3057.3,3.79916849]
[1764361669369,0.30541573,3057.4,3057.3,3.2708599]
[1764361670251,0.80141573,3057.4,3057.3,3.2708599]
[1764361671784,0.30541573,3057.4,3057.3,6.28844216]
[1764361671988,0.30541573,3057.4,3057.3,6.38844216]
[1764361672285,0.30541573,3057.4,3057.3,5.89014216]
[1764361672645,0.30541573,3057.4,3057.3,10.90562506]
[1764361672954,0.30541573,3057.4,3057.3,10.87291647]
[1764361673144,0.30543411,3057.4,3057.3,10.87291647]
[1764361675353,0.30543411,3057.4,3057.3,11.77672047]
[1764361679746,0.002,3057.7,3057.4,1.13109811]
[1764361680081,0.30576774,3057.6,3057.5,1.99649484]
[1764361680254,0.30576774,3057.6,3057.5,1.03651045]
[1764361680459,0.30576774,3057.6,3057.5,1.53211045]
[1764361680651,0.30576774,3057.6,3057.5,2.405004]
[1764361680852,0.30576774,3057.6,3057.5,1.906704]
[1764361681076,0.30576774,3057.6,3057.5,7.64778101]
[1764361681386,0.30576774,3057.6,3057.5,9.31565846]
[1764361681774,0.30576774,3057.6,3057.5,12.58630441]
[1764361682570,0.30576774,3057.6,3057.5,12.48630441]
[1764361682878,0.30576774,3057.6,3057.5,11.99070441]
[1764361683176,1.29336774,3057.6,3057.5,3.27064595]
[1764361685384,2.19896774,3057.6,3057.5,3.27064595]
[1764361688990,1.21136774,3057.6,3057.5,3.76444595]
[1764361689279,1.21136774,3057.6,3057.5,6.33141388]
[1764361689480,1.21136774,3057.6,3057.5,6.73691788]
[1764361689665,1.21136774,3057.6,3057.5,6.70421143]
[1764361691056,0.30576774,3057.6,3057.5,6.70421143]
[1764361694171,0.30576774,3057.6,3057.5,6.22141143]
[1764361695580,0.30576774,3057.6,3057.5,6.25411788]
[1764361695880,0.30576774,3057.6,3057.5,6.73691788]
[1764361696087,0.30576774,3057.6,3057.5,6.70421143]
[1764361697885,0.30576774,3057.6,3057.5,7.60981143]
[1764361699384,0.30576774,3057.6,3057.5,7.12701143]
[1764361702694,0.30576774,3057.6,3057.5,7.12801143]
[1764361702892,0.76656774,3057.6,3057.5,7.12801143]
[1764361703190,1.24386774,3057.6,3057.5,6.53421143]
[1764361703395,0.76656774,3057.6,3057.5,5.72861143]
[1764361704272,0.30576774,3057.6,3057.5,5.76131788]
[1764361705369,0.30576774,3057.6,3057.5,6.22751788]
[1764361706782,0.30576774,3057.6,3057.5,6.70601788]
[1764361706982,0.30576774,3057.6,3057.5,7.15061143]
[1764361708301,0.30576774,3057.6,3057.5,6.20591143]
[1764361708496,0.30576774,3057.6,3057.5,4.91275051]
[1764361709597,0.30576774,3057.6,3057.5,5.85745051]
[1764361709792,0.30576774,3057.6,3057.5,5.95745051]
[1764361710599,0.002,3057.7,3057.6,0.72559411]
[1764361710774,0.30830523,3057.7,3057.6,0.82559411]
[1764361712014,0.76910523,3057.7,3057.6,4.09613309]
[1764361712216,0.76910523,3057.7,3057.6,4.12883847]
[1764361713406,1.24640523,3057.7,3057.6,3.99613309]
[1764361716488,0.76910523,3057.7,3057.6,4.02883847]
[1764361717806,0.76910523,3057.7,3057.6,3.99613309]
[1764361718674,0.4628,3057.7,3057.6,3.99613309]
[1764361718878,0.76953435,3057.7,3057.6,3.99613309]
[1764361721788,1.24313435,3057.7,3057.6,3.99613309]
[1764361721978,0.76953435,3057.7,3057.6,4.02883847]
[1764361722178,0.71953435,3057.7,3057.6,4.02883847]
[1764361723806,0.30673435,3057.7,3057.6,4.02883847]
[1764361724814,0.30673435,3057.7,3057.6,4.12883847]
[1764361725806,0.30673435,3057.7,3057.6,4.09613309]
[1764361727202,0.79093435,3057.7,3057.6,4.09613309]
[1764361727374,1.26453435,3057.7,3057.6,4.09613309]
[1764361727578,0.79093435,3057.7,3057.6,4.09613309]
[1764361728405,0.79093435,3057.7,3057.6,4.12883847]
[1764361729579,0.74093435,3057.7,3057.6,4.12883847]
[1764361730706,0.25673435,3057.7,3057.6,4.12883847]
[1764361730907,0.25673435,3057.7,3057.6,4.57913847]
[1764361734593,0.74093435,3057.7,3057.6,4.12883847]
[1764361735085,1.21453435,3057.7,3057.6,4.12883847]
[1764361735289,1.21453435,3057.7,3057.6,4.09613309]
[1764361735888,1.21453435,3057.7,3057.6,3.27053898]
[1764361736209,1.21453435,3057.7,3057.6,3.30324436]
[1764361737108,0.9578,3057.7,3057.6,3.30324436]
[1764361737308,0.9578,3057.7,3057.5,0.001]
[1764361737490,0.6053,3057.6,3057.5,0.001]
[1764361739792,0.99307248,3057.6,3057.5,0.001]
[1764361741293,23.89240818,3057.6,3057.5,0.001]
[1764361741515,23.68549037,3057.6,3057.5,0.001]
[1764361741712,16.65703837,3057.6,3057.5,0.001]
[1764361742125,13.38649939,3057.6,3057.5,0.001]
[1764361742705,6.30856939,3057.6,3057.5,0.001]
[1764361742908,4.83541067,3057.6,3057.5,0.001]
[1764361743424,8.10594965,3057.6,3057.5,0.001]
[1764361744305,13.11516437,3057.6,3057.5,0.001]
[1764361746120,22.16298637,3057.6,3057.5,0.001]
[1764361746324,21.95960837,3057.6,3057.5,0.001]
[1764361747328,22.39028899,3057.6,3057.5,0.001]
[1764361748122,22.05960837,3057.6,3057.5,0.001]
[1764361748499,21.71270237,3057.6,3057.5,0.001]
[1764361749121,22.51830237,3057.6,3057.5,0.001]
[1764361750397,21.16436837,3057.6,3057.5,0.001]
[1764361750603,11.01425039,3057.6,3057.5,0.001]
[1764361751729,7.21416939,3057.6,3057.5,0.001]
[1764361751938,2.20495467,3057.6,3057.5,0.001]
[1764361752341,1.73135467,3057.6,3057.5,0.001]
[1764361752507,2.20995467,3057.6,3057.5,0.001]
[1764361761352,5.48049365,3057.6,3057.5,0.001]
[1764361762046,2.20995467,3057.6,3057.5,0.001]
[1764361765870,1.55058219,3057.6,3057.5,0.001]
[1764361766961,1.21188219,3057.6,3057.5,0.4762]
[1764361767167,2.15188219,3057.6,3057.5,0.001]
[1764361769571,1.21188219,3057.6,3057.5,0.937]
[1764361771584,1.21188219,3057.6,3057.5,4.20764595]
[1764361771763,1.21188219,3057.6,3057.5,0.4762]
[1764361771942,1.21188219,3057.6,3057.5,3.74684595]
[1764361774000,1.68488219,3057.6,3057.5,0.001]
[1764361774312,1.21188219,3057.6,3057.5,3.27164595]
[1764361776203,1.21188219,3057.6,3057.5,0.001]
[1764361778013,1.21188219,3057.6,3057.5,0.4908]
[1764361778895,1.21188219,3057.6,3057.5,0.9656]
[1764361779773,1.21188219,3057.6,3057.5,4.23624595]
[1764361780299,1.21188219,3057.6,3057.5,3.76144595]
[1764361781275,1.21198571,3057.6,3057.5,3.76144595]
[1764361783912,1.21198571,3057.6,3057.5,4.98704494]
[1764361789792,1.21198571,3057.6,3057.5,4.51224494]
[1764361791565,2.14338571,3057.6,3057.5,0.001]
[1764361792526,1.68658571,3057.6,3057.5,0.001]
[1764361792843,2.14338571,3057.6,3057.5,0.001]
[1764361793254,1.68658571,3057.6,3057.5,0.001]
[1764361793455,2.14338571,3057.6,3057.5,0.001]
[1764361795659,1.68658571,3057.6,3057.5,0.001]
[1764361799798,1.68658571,3057.6,3057.2,6.9878737]
[1764361799996,0.30638571,3057.5,3057.2,6.9878737]
[1764361800197,0.30638571,3057.4,3057.2,6.9878737]
[1764361800409,0.30638571,3057.3,3057.2,3.71690681]
[1764361800897,0.30638571,3057.3,3057.2,3.24210681]
[1764361801091,1.21198571,3057.3,3057.2,3.73190681]
[1764361801706,1.21198571,3057.3,3057.2,5.26521755]
[1764361802414,1.21198571,3057.3,3057.2,4.41370681]
[1764361802576,1.21198571,3057.3,3057.2,5.57751458]
[1764361802776,0.30638571,3057.3,3057.2,5.67751458]
[1764361802987,0.30638571,3057.3,3057.2,6.66020449]
[1764361803481,0.002,3057.7,3057.2,6.66020449]
[1764361803482,0.002,3057.7,3057.3,1.13109811]
[1764361803675,0.002,3057.7,3057.6,0.995304]
[1764361803882,0.002,3057.7,3057.6,1.202304]
[1764361804081,0.002,3057.7,3057.6,1.80811859]
[1764361804283,0.002,3057.7,3057.6,5.07865757]
[1764361805793,0.002,3057.7,3057.6,4.97865757]
[1764361806001,0.002,3057.7,3057.6,6.018152]
[1764361809085,0.002,3057.7,3057.6,6.118152]
[1764361809925,0.002,3057.7,3057.6,6.15085738]
[1764361810111,0.002,3057.7,3057.6,6.118152]
[1764361813922,0.4801,3057.7,3057.6,4.20313309]
[1764361814289,0.002,3057.7,3057.6,4.66373309]
[1764361814910,0.9726,3057.7,3057.6,3.47753898]
[1764361815192,0.9726,3057.7,3057.6,3.24797898]
[1764361815392,0.4801,3057.7,3057.6,3.24797898]
[1764361815619,0.78591911,3057.7,3057.6,3.24797898]
[1764361815801,0.78591911,3057.7,3057.6,0.207]
[1764361816002,1.27841911,3057.7,3057.6,0.207]
[1764361816206,1.69151911,3057.7,3057.4,6.54150584]
[1764361816408,0.30581911,3057.6,3057.4,6.54150584]
[1764361816598,0.78391911,3057.5,3057.4,3.27075292]
[1764361817001,1.27641911,3057.5,3057.4,3.27075292]
[1764361819628,0.78391911,3057.5,3057.4,3.27075292]
[1764361820203,0.30581911,3057.5,3057.4,3.27075292]
[1764361821799,1.21141911,3057.5,3057.4,3.27075292]
[1764361822305,1.21141911,3057.5,3057.4,3.75675292]
[1764361822915,1.21141911,3057.5,3057.4,4.27116044]
[1764361824327,1.21141911,3057.5,3057.4,4.99675455]
[1764361824529,1.21141911,3057.5,3057.4,5.78175587]
[1764361824732,1.21141911,3057.5,3057.4,5.88175587]
[1764361825326,1.21141911,3057.5,3057.4,5.78175587]
[1764361826641,1.21141911,3057.5,3057.4,5.74904835]
[1764361827517,1.21141911,3057.5,3057.4,5.26734835]
[1764361828005,1.21141911,3057.5,3057.4,6.15455235]
[1764361831121,1.21141911,3057.5,3057.4,6.18725987]
[1764361831962,1.21141911,3057.5,3057.4,6.28725987]
[1764361833137,0.30581911,3057.5,3057.4,6.28725987]
[1764361833340,0.002,3057.7,3057.5,0.405504]
[1764361833550,0.002,3057.7,3057.6,7.74814302]
[1764361833748,0.002,3057.7,3057.6,7.71543764]
[1764361834239,0.002,3057.7,3057.6,8.32813464]
[1764361834910,0.002,3057.7,3057.6,11.59867362]
[1764361852961,0.002,3057.7,3057.6,11.19316962]
[1764361857048,0.002,3057.7,3057.6,11.59867362]
[1764361870458,0.002,3058.4,3058.1,0.405504]
[1764361870659,0.002,3058.4,3058.3,6.24308596]
[1764361870885,0.002,3058.4,3058.3,6.73958596]
[1764361871189,0.002,3058.4,3058.3,8.12348596]
[1764361871366,0.002,3058.4,3058.3,7.64518596]
[1764361871565,0.002,3058.4,3058.3,8.49747456]
[1764361872897,0.002,3058.4,3058.3,11.76726496]
[1764361873596,0.4709,3058.4,3058.3,10.13966685]
[1764361873763,0.9343,3058.4,3058.3,3.5767904]
[1764361873969,0.9343,3058.4,3058.3,4.70788851]
[1764361875296,0.9343,3058.4,3058.3,4.60788851]
[1764361875486,0.9343,3058.4,3058.3,4.70788851]
[1764361876493,0.9314,3058.4,3058.3,4.74058641]
[1764361876698,0.4709,3058.4,3058.3,6.1333929]
[1764361877264,0.9314,3058.4,3058.3,6.1333929]
[1764361878402,0.4709,3058.4,3058.3,6.1333929]
[1764361880601,0.4709,3058.4,3058.3,11.13930452]
[1764361880770,0.9314,3058.4,3058.3,11.10660662]
[1764361881371,0.4709,3058.4,3058.3,11.10660662]
[1764361883301,0.9314,3058.4,3058.3,9.71380013]
[1764361884876,0.002,3058.4,3058.3,10.17710013]
[1764361885271,0.002,3058.4,3058.3,11.15934281]
[1764361885895,0.4862,3058.4,3058.3,5.69013119]
[1764361886099,0.4862,3058.4,3058.3,7.11942243]
[1764361886301,0.4862,3058.4,3058.3,7.08672453]
[1764361886773,0.002,3058.4,3058.3,7.08672453]
[1764361886973,0.002,3058.4,3058.3,7.55002453]
[1764361887484,0.002,3058.4,3058.3,7.08672453]
[1764361887883,0.4862,3058.4,3058.3,7.08672453]
[1764361888084,0.9467,3058.4,3058.3,7.08672453]
[1764361890924,0.9467,3058.4,3058.3,7.08772453]
[1764361893899,0.002,3058.4,3058.3,7.55102453]
[1764361894281,0.002,3058.4,3058.3,8.02222453]
[1764361895311,0.002,3058.4,3058.3,7.55102453]
[1764361896584,0.002,3058.4,3058.3,8.04982453]
[1764361896981,6.34,3060.1,3058.3,8.04982453]
[1764361896982,0.666,3059.4,3059.3,0.505504]
[1764361897183,0.1817,3060.0,3059.4,0.405504]
[1764361897401,0.1817,3060.0,3059.4,1.12971537]
[1764361897598,0.63850982,3059.5,3059.4,6.63450973]
[1764361898008,0.15680982,3059.5,3059.4,6.63450973]
[1764361898409,0.63850982,3059.5,3059.4,9.90312449]
[1764361898712,0.63850982,3059.5,3059.4,9.80312449]
[1764361898904,0.63850982,3059.5,3059.4,9.90312449]
[1764361899502,0.63850982,3059.5,3059.4,11.220309]
[1764361899707,0.63850982,3059.5,3059.4,4.69021287]
[1764361899909,0.94412706,3059.5,3059.4,4.89721287]
[1764361900299,0.94412706,3059.5,3059.4,4.70671287]
[1764361900915,1.42512706,3059.5,3059.4,4.70671287]
[1764361904026,1.42512706,3059.5,3059.4,4.60671287]
[1764361904315,1.42512706,3059.5,3059.4,4.70671287]
[1764361904883,1.42512706,3059.5,3059.4,4.20120887]
[1764361905085,2.33072706,3059.5,3058.4,3.26968349]
[1764361905325,1.92528995,3059.4,3059.2,0.1]
[1764361905508,1.92528995,3059.4,3058.6,0.98227485]
[1764361905509,0.30561724,3059.3,3058.6,0.98227485]
[1764361905690,0.30561724,3059.2,3059.0,0.1]
[1764361906023,0.481,3059.3,3059.0,0.1]
[1764361906024,0.30561724,3059.1,3059.0,0.1]
[1764361906190,0.78731724,3059.1,3059.0,3.36904217]
[1764361906398,1.26831724,3059.1,3059.0,3.36904217]
[1764361907197,1.26831724,3059.1,3059.0,0.1]
[1764361908092,1.26831724,3059.1,3058.7,0.72559411]
[1764361908432,1.13867271,3059.4,3058.7,0.72559411]
[1764361908433,0.78661724,3059.0,3058.8,0.1]
[1764361908597,0.30561724,3058.9,3058.8,0.1]
[1764361908931,1.45001724,3058.9,3058.8,0.1]
[1764361910336,1.45001724,3058.9,3058.8,3.36925591]
[1764361910492,1.44998218,3058.9,3058.8,3.36925591]
[1764361910898,2.35558218,3058.9,3058.8,3.36925591]
[1764361911631,2.35558218,3058.9,3058.8,3.40194846]
[1764361911932,1.44998218,3058.9,3058.8,3.40194846]
[1764361912126,1.44998218,3058.9,3058.8,8.40786008]
[1764361912331,1.44998218,3058.9,3058.8,8.37516753]
[1764361913424,0.78728218,3058.9,3058.8,8.37516753]
[1764361913627,0.30558218,3058.9,3058.8,8.37516753]
[1764361913998,0.78728218,3058.9,3058.8,8.78067153]
[1764361915133,0.78728218,3058.9,3058.8,3.77475991]
[1764361915339,1.41448218,3058.9,3058.8,3.77475991]
[1764361916432,1.41448218,3058.9,3058.8,3.36925591]
[1764361916638,1.41448218,3058.9,3058.3,3.27077533]
[1764361916935,5.48761162,3058.4,3057.8,0.9825129]
[1764361917235,0.4787,3058.0,3057.8,3.27026502]
[1764361917565,0.78428218,3058.0,3057.6,3.27151709]
[1764361917736,1.26528218,3058.0,3057.6,0.001]
[1764361919233,9.54130498,3058.0,3057.6,0.001]
[1764361919417,10.51603548,3058.0,3057.6,0.001]
[1764361920316,0.365,3057.7,3057.6,0.001]
[1764361920638,5.68439118,3057.7,3057.6,0.001]
[1764361920832,8.3850872,3057.7,3057.6,0.001]
[1764361921037,10.73921127,3057.7,3057.6,0.001]
[1764361921223,12.562528,3057.6,3057.4,0.001]
[1764361921424,13.20440293,3057.5,3057.4,0.001]
[1764361921624,13.68540293,3057.5,3057.4,0.001]
[1764361921804,8.40593893,3057.5,3057.4,0.001]
[1764361922011,10.68465843,3057.5,3057.4,0.001]
[1764361922333,3.25092981,3057.5,3057.4,0.001]
[1764361922564,1.87781031,3057.5,3057.4,0.101]
[1764361922737,1.87781031,3057.5,3057.4,3.37175292]
[1764361923035,1.87781031,3057.5,3057.4,0.101]
[1764361923234,1.87781031,3057.5,3057.4,0.001]
[1764361923427,2.08376134,3057.5,3057.4,0.001]
[1764361925641,2.08254829,3057.5,3057.4,0.001]
[1764361941435,2.08336347,3057.5,3057.4,0.001]
[1764361946255,2.08536347,3057.5,3057.4,0.001]
[1764361950989,1.21211244,3057.5,3057.4,0.5934]
[1764361951152,1.21211244,3057.5,3057.4,1.0672]
[1764361951350,1.69811244,3057.5,3057.4,0.23203648]
[1764361951876,1.21211244,3057.5,3057.4,0.72443648]
[1764361952095,1.21211244,3057.5,3057.4,0.13203648]
[1764361952287,1.21211244,3057.5,3057.4,0.72443648]
[1764361952477,1.21211244,3057.5,3057.4,1.19823648]
[1764361952678,1.21211244,3057.5,3057.4,0.72443648]
[1764361953365,1.21211244,3057.5,3057.4,3.9951894]
[1764361953569,1.69811244,3057.5,3057.4,3.37175292]
[1764361955123,2.17991244,3057.5,3057.4,3.37175292]
[1764361955253,2.17991244,3057.5,3057.4,3.27175292]
[1764361955451,2.39790368,3057.5,3057.4,0.001]
[1764361959006,2.60490368,3057.5,3057.4,0.001]
[1764361959303,2.60490368,3057.5,3057.0,0.001]
[1764361959304,23.121968,3057.2,3057.0,0.001]
[1764361959505,6.816524,3057.0,3056.9,0.001]
[1764361959680,12.30308097,3057.0,3056.9,0.001]
[1764361959881,12.78488097,3057.0,3056.9,0.001]
[1764361960081,5.96835697,3057.0,3056.9,0.001]
[1764361960400,18.01154597,3057.0,3056.9,0.001]
[1764361961011,18.11154597,3057.0,3056.9,0.001]
[1764361961206,24.84593097,3057.0,3056.9,0.001]
[1764361962312,5.96835697,3057.0,3056.9,0.001]
[1764361962641,29.09032497,3057.0,3056.9,0.001]
[1764361962911,24.62041597,3057.0,3056.9,0.001]
[1764361963382,24.66274697,3057.0,3056.9,0.001]
[1764361963579,24.56274697,3057.0,3056.9,0.001]
[1764361963779,23.84756211,3056.9,3056.2,0.001]
[1764361963986,28.29393696,3056.9,3056.2,0.001]
[1764361964383,31.66522486,3056.9,3056.2,0.001]
[1764361964799,26.20712186,3056.9,3056.2,0.001]
[1764361965413,31.66522486,3056.9,3056.2,0.001]
[1764361965986,31.40432986,3056.9,3056.2,0.001]
[1764361966393,31.46727286,3056.9,3056.2,0.001]
[1764361966600,30.67525686,3056.9,3056.2,0.001]
[1764361967426,0.8986,3056.1,3056.0,0.001]
[1764361967729,1.84131244,3056.1,3056.0,0.001]
[1764361971439,1.20311244,3056.1,3056.0,1.032]
[1764361972660,1.66031244,3056.1,3056.0,0.001]
[1764361974812,2.14211244,3056.1,3056.0,0.001]
[1764361975008,2.70422299,3056.1,3056.0,0.001]
[1764361975212,2.14211244,3056.1,3056.0,0.001]
[1764361975440,1.66031244,3056.1,3056.0,0.001]
[1764361975629,2.14211244,3056.1,3056.0,0.001]
[1764361979243,0.8976,3056.0,3055.9,0.001]
[1764361979421,1.87091244,3056.0,3055.9,0.001]
[1764361980026,1.20211244,3056.0,3055.9,0.467]
[1764361980953,1.20211244,3056.0,3055.9,4.20435838]
[1764361981253,1.20211244,3056.0,3055.9,3.73935838]
[1764361983438,1.20211244,3056.0,3055.9,0.467]
[1764361983637,1.20211244,3056.0,3055.9,3.73935838]
[1764361984235,1.20211244,3056.0,3055.9,4.20435838]
[1764361987428,1.20211244,3056.0,3055.9,0.4577]
[1764361988355,1.20211244,3056.0,3055.9,3.73005838]
[1764361989339,1.20211244,3056.0,3055.9,4.22085838]
[1764361990159,1.67121244,3056.0,3055.9,0.001]
[1764361990330,1.67121244,3056.0,3055.9,3.27335838]
[1764361990530,1.20211244,3056.0,3055.9,3.73005838]
[1764361991257,1.20211244,3056.0,3055.9,4.22085838]
[1764361991959,0.8976,3056.0,3055.9,4.22085838]
[1764361992159,1.20433851,3056.0,3055.9,4.22085838]
[1764361992364,1.20433851,3056.0,3055.9,3.73005838]
[1764361994541,1.20433851,3056.0,3055.9,0.4577]
[1764361994737,1.20433851,3056.0,3055.9,3.73005838]
[1764361997437,1.20633851,3056.0,3055.9,3.73005838]
[1764361997841,1.68593851,3056.0,3055.9,3.27335838]
[1764361998356,2.15203851,3056.0,3055.9,3.27335838]
[1764361998669,2.15214461,3056.0,3055.9,3.27335838]
[1764361998873,1.68604461,3056.0,3055.9,3.27335838]
[1764361999057,1.68604461,3056.0,3055.9,0.001]
[1764361999058,2.36755907,3056.0,3055.9,0.001]
[1764361999230,8.49347737,3056.0,3055.9,0.001]
[1764362000186,0.8956,3055.7,3055.6,0.001]
[1764362000370,1.20244461,3055.7,3055.6,0.001]
[1764362000536,1.90197907,3055.7,3055.6,0.001]
[1764362000858,2.36807907,3055.7,3055.6,0.001]
[1764362002253,1.90197907,3055.7,3055.6,0.001]
[1764362002767,2.36807907,3055.7,3055.6,0.001]
[1764362003237,1.90197907,3055.7,3055.6,0.001]
[1764362003438,1.67714461,3055.7,3055.6,0.001]
[1764362004075,1.20244461,3055.7,3055.6,0.001]
[1764362004466,1.68204461,3055.7,3055.6,0.001]
[1764362005370,1.20244461,3055.7,3055.6,0.4672]
[1764362005872,1.20244461,3055.7,3055.6,3.73987967]
[1764362006061,1.20244461,3055.7,3055.6,4.30987967]
[1764362008178,1.20244461,3055.7,3055.6,3.83987967]
[1764362008962,1.20244461,3055.7,3055.6,4.30987967]
[1764362009164,1.68204461,3055.7,3055.6,3.27367967]
[1764362009361,1.20244461,3055.7,3055.6,3.27367967]
[1764362009970,1.20244461,3055.7,3055.6,0.001]
[1764362011399,1.20244461,3055.7,3055.6,3.73987967]
[1764362014871,1.68404461,3055.7,3055.6,0.001]
[1764362015077,2.31854907,3055.7,3055.6,0.001]
[1764362015393,2.31854907,3055.7,3055.6,3.27367967]
[1764362015556,2.31835813,3055.7,3055.6,3.27367967]
[1764362015886,2.31835813,3055.7,3055.6,0.001]
[1764362016072,2.55025813,3055.7,3055.5,0.001]
[1764362016272,0.69228948,3055.6,3055.5,0.001]
[1764362017386,0.30665367,3055.6,3055.5,0.4687]
[1764362017893,1.19225367,3055.6,3055.5,0.4687]
[1764362018076,1.19225367,3055.6,3055.5,3.74148677]
[1764362018265,1.19221235,3055.6,3055.5,3.74148677]
[1764362020287,1.67151235,3055.6,3055.5,3.27378677]
[1764362022289,1.67151235,3055.6,3055.5,0.001]
[1764362022592,2.35056359,3055.6,3055.5,0.001]
[1764362023292,0.8846,3055.5,3055.3,0.001]
[1764362023592,0.51361235,3055.4,3055.3,0.001]
[1764362023991,0.30661235,3055.4,3055.3,0.001]
[1764362024192,0.30661235,3055.4,3055.3,0.4687]
[1764362024392,0.30661235,3055.4,3055.3,3.74170101]
[1764362024594,0.30661235,3055.4,3055.3,0.4687]
[1764362024987,0.30661235,3055.4,3055.3,3.74170101]
[1764362026093,1.19121235,3055.4,3055.3,4.22370101]
[1764362026270,1.19121235,3055.4,3055.3,4.99066192]
[1764362026792,1.19121235,3055.4,3055.3,5.02339193]
[1764362026992,1.19121235,3055.4,3055.3,5.73589593]
[1764362029105,1.19121235,3055.4,3055.3,11.47863812]
[1764362029273,1.19121235,3055.4,3055.3,11.44590811]
[1764362033805,0.30661235,3055.4,3055.3,11.44590811]
[1764362035809,0.30661235,3055.4,3055.3,5.07979912]
[1764362036514,0.30661235,3055.4,3055.3,4.35420501]
[1764362037740,0.78591235,3055.4,3055.3,3.48100101]
[1764362038713,1.67051235,3055.4,3055.3,3.48100101]
[1764362040221,1.67051235,3055.4,3055.3,3.27400101]
[1764362040398,2.16151235,3055.4,3055.3,3.27400101]
[1764362040914,1.67051235,3055.4,3055.3,0.001]
[1764362041127,1.83756359,3055.4,3055.3,0.001]
[1764362041310,2.32856359,3055.4,3055.3,0.001]
[1764362041522,1.67051235,3055.4,3055.3,0.001]
[1764362042029,1.19121235,3055.4,3055.3,0.001]
[1764362042229,1.19121235,3055.4,3055.3,0.4687]
[1764362044731,1.19121235,3055.4,3055.3,3.74170101]
[1764362044938,1.19121235,3055.4,3055.3,4.22370101]
[1764362045143,1.19121235,3055.4,3055.3,4.32370101]
[1764362046009,1.19121235,3055.4,3055.3,4.35643102]
[1764362047142,1.19121235,3055.4,3055.3,4.25643102]
[1764362047310,1.19121235,3055.4,3055.3,4.35643102]
[1764362047842,1.19121235,3055.4,3055.3,3.87443102]
[1764362048021,1.19121235,3055.4,3055.3,3.84170101]
[1764362049451,1.19121235,3055.4,3055.3,3.87443102]
[1764362049922,1.19121235,3055.4,3055.3,4.73863502]
[1764362051525,1.19121235,3055.4,3055.3,4.63863502]
[1764362051725,1.19121235,3055.4,3055.3,4.73863502]
[1764362053339,1.19121235,3055.4,3055.3,6.2826828]
[1764362054446,1.19121235,3055.4,3055.3,5.46422913]
[1764362058252,1.19121235,3055.4,3055.3,5.46422913]
[1764362058555,1.19121235,3055.4,3055.3,5.43149912]
[1764362061360,1.19121235,3055.4,3055.3,5.46422913]
[1764362062360,0.30661235,3055.4,3055.3,5.46422913]
[1764362065060,0.30661235,3055.4,3055.3,5.43149912]
[1764362065222,0.30661235,3055.4,3055.3,6.909414]
[1764362066561,0.30661235,3055.4,3055.3,11.92454124]
[1764362072596,0.76941235,3055.4,3055.3,4.09959512]
[1764362072748,1.26771235,3055.4,3055.3,4.13232513]
[1764362072942,1.26771235,3055.4,3055.3,3.77950501]
[1764362073469,1.26771235,3055.4,3055.3,4.50509912]
[1764362073769,1.26771235,3055.4,3055.3,4.09959512]
[1764362074281,1.65401235,3055.4,3055.3,4.50509912]
[1764362075077,1.19121235,3055.4,3055.3,4.50509912]
[1764362075303,1.19121235,3055.4,3055.3,5.01092913]
[1764362077082,2.17401235,3055.4,3055.3,3.30673102]
[1764362077261,1.67851235,3055.4,3055.3,3.37400101]
[1764362077459,1.67851235,3055.4,3055.3,3.77950501]
[1764362078073,1.19121235,3055.4,3055.3,4.28533502]
[1764362079594,1.19121235,3055.4,3055.3,4.75613502]
[1764362080061,1.19121235,3055.4,3055.3,4.25260501]
[1764362080264,0.30661235,3055.4,3055.3,4.25260501]
[1764362081579,0.30661235,3055.4,3055.3,3.77950501]
[1764362081879,0.79391235,3055.4,3055.3,3.77950501]
[1764362082221,1.28941235,3055.4,3055.3,3.37400101]
[1764362086183,0.79391235,3055.4,3055.3,0.101]
[1764362089122,0.7937666,3055.4,3055.3,3.37400101]
[1764362089290,0.7937666,3055.4,3055.3,3.77950501]
[1764362089482,0.7937666,3055.4,3055.3,3.81223502]